bitfinex-derivatives/quotes_SOLF0:USTF0_20251224
["timestamp","ask_amount","ask_price","bid_price","bid_amount"]
[1766598113901,7.36425986,122.33,122.3,0.05577287]
[1766598114997,0.00255986,122.33,122.3,0.05577287]
[1766598120302,7.36415986,122.33,122.27,12.01]
[1766598121397,0.00255986,122.33,122.29,0.05823971]
[1766598122496,0.00255986,122.33,122.29,10.75823971]
[1766598123496,0.00255986,122.33,122.25,10.7]
[1766598123694,12.83443016,122.35,122.25,10.7]
[1766598123901,10.65,122.3,122.23,10.7]
[1766598124497,10.65,122.34,122.23,10.7]
[1766598125506,0.05989267,122.3,122.27,0.05748659]
[1766598125804,0.05989267,122.3,122.27,0.05529338]
[1766598126400,10.65,122.37,122.27,10.75529338]
[1766598126605,10.65,122.37,122.29,10.7]
[1766598127009,7.36,122.36,122.29,10.7]
[1766598127310,0.05226649,122.34,122.31,0.05689577]
[1766598133117,0.00226649,122.34,122.31,10.75689577]
[1766598136815,0.00226649,122.34,122.31,18.11949577]
[1766598137020,0.00226649,122.34,122.32,10.7]
[1766598137713,0.00226649,122.34,122.32,18.0621]
[1766598137920,10.65,122.41,122.33,10.7]
[1766598139019,0.05725399,122.38,122.36,0.05319109]
[1766598143815,10.70725399,122.38,122.31,10.7]
[1766598144015,10.65,122.38,122.31,10.7]
[1766598144215,7.3598,122.36,122.31,10.7]
[1766598144923,0.05253749,122.35,122.32,0.06291033]
[1766598145627,7.41283749,122.35,122.32,0.06291033]
[1766598150826,0.05253749,122.35,122.32,0.06291033]
[1766598151927,0.00253749,122.35,122.32,10.81291033]
[1766598153232,0.00253749,122.35,122.34,18.1109]
[1766598158328,0.00253749,122.35,122.34,10.75]
[1766598158636,0.00253749,122.35,122.32,0.06291033]
[1766598161233,7.36333749,122.35,122.32,0.06291033]
[1766598161437,7.36333749,122.35,122.29,9.82]
[1766598161438,9.94,122.34,122.27,71.82]
[1766598161633,9.94,122.34,122.25,9.82]
[1766598162133,9.94,122.32,122.25,9.82]
[1766598162334,0.0523289,122.3,122.27,0.06053444]
[1766598168535,9.9923289,122.3,122.27,0.06053444]
[1766598174044,9.9923289,122.3,122.24,9.82]
[1766598174545,9.9923289,122.3,122.24,17.1869]
[1766598174948,9.9923289,122.3,122.26,0.04300989]
[1766598179043,0.0523289,122.3,122.26,9.86300989]
[1766598179557,9.94,122.33,122.27,7.3651]
[1766598180744,0.05901586,122.31,122.29,0.06027962]
[1766598183246,16.9397,122.36,122.29,17.14417962]
[1766598183452,18.33868948,122.36,122.29,17.0839]
[1766598183950,16.9397,122.36,122.29,17.0839]
[1766598184352,0.05163474,122.34,122.31,0.06124675]
[1766598194358,9.63163474,122.34,122.29,9.72]
[1766598194758,16.9415,122.33,122.26,9.72]
[1766598195151,0.0540744,122.31,122.28,0.05643589]
[1766598198562,0.0040744,122.31,122.28,9.77643589]
[1766598199657,0.0040744,122.31,122.29,17.0839]
[1766598203564,0.0040744,122.31,122.3,9.72]
[1766598203963,0.0040744,122.31,122.29,7.3639]
[1766598207862,0.0040744,122.31,122.29,17.0839]
[1766598208068,0.0040744,122.31,122.3,17.0833]
[1766598216176,7.3584,122.39,122.32,7.3618]
[1766598216363,73.81,122.4,122.33,9.26]
[1766598216566,9.41,122.4,122.33,9.26]
[1766598216764,9.41,122.4,122.34,9.26]
[1766598217273,0.06136828,122.38,122.36,0.05334887]
[1766598228382,16.8361,122.42,122.36,9.87334887]
[1766598228887,9.48,122.42,122.37,9.82]
[1766598229475,0.06162242,122.41,122.37,9.82]
[1766598230585,0.06162242,122.41,122.37,17.179]
[1766598234174,9.54162242,122.41,122.36,0.05334887]
[1766598234990,9.54162242,122.41,122.36,9.87334887]
[1766598240687,16.89832242,122.41,122.36,9.87334887]
[1766598241383,9.54162242,122.41,122.36,9.87334887]
[1766598241577,9.54162242,122.41,122.36,0.05334887]
[1766598242584,9.24,122.39,122.36,0.05334887]
[1766598248895,9.30162242,122.41,122.36,9.52334887]
[1766598250595,9.30162242,122.41,122.36,16.88294887]
[1766598252297,9.30162242,122.41,122.36,7.41294887]
[1766598254396,9.30162242,122.41,122.36,0.05334887]
[1766598255595,0.06162242,122.41,122.36,9.52334887]
[1766598256393,0.06162242,122.41,122.37,16.829]
[1766598259006,0.06162242,122.41,122.37,9.47]
[1766598259703,9.30162242,122.41,122.36,0.05334887]
[1766598260198,16.65832242,122.41,122.36,0.05334887]
[1766598269414,16.5974,122.4,122.36,0.05334887]
[1766598269610,9.24,122.39,122.36,0.05334887]
[1766598272210,9.53162242,122.41,122.36,0.05334887]
[1766598272414,9.53162242,122.41,122.36,8.89334887]
[1766598272812,9.53162242,122.41,122.36,0.05334887]
[1766598279429,16.88842242,122.41,122.36,0.05334887]
[1766598279616,8.93,122.4,122.36,0.05334887]
[1766598283530,0.06162242,122.41,122.36,16.35304887]
[1766598284233,8.99162242,122.41,122.36,16.35304887]
[1766598294131,0.06162242,122.41,122.37,8.94]
[1766598294326,0.06162242,122.41,122.38,8.94]
[1766598294327,0.00162242,122.41,122.38,8.94]
[1766598295325,8.93,122.44,122.39,8.94]
[1766598296441,0.06124391,122.43,122.4,0.05793669]
[1766598300340,0.06124391,122.43,122.37,8.94]
[1766598300341,8.99124391,122.43,122.37,8.94]
[1766598300842,8.93,122.42,122.37,8.94]
[1766598301035,8.93,122.42,122.35,8.94]
[1766598301434,8.95412208,122.4,122.34,10.14992405]
[1766598301645,8.95412208,122.4,122.33,16.031]
[1766598301943,8.95412208,122.4,122.34,8.67]
[1766598302443,8.95412208,122.4,122.36,0.05199216]
[1766598302642,16.31142208,122.4,122.36,0.05199216]
[1766598305240,8.9,122.39,122.36,0.00199216]
[1766598305436,8.9,122.38,122.32,16.0315]
[1766598305833,8.9,122.38,122.33,7.3613]
[1766598306241,8.9,122.38,122.33,16.0313]
[1766598306440,8.9,122.38,122.34,0.05518245]
[1766598306441,0.05656129,122.37,122.34,0.05518245]
[1766598307443,0.05656129,122.37,122.34,8.72518245]
[1766598307644,306.52495648,122.49,122.35,8.67]
[1766598307645,8.9,122.42,122.35,8.67]
[1766598308546,0.05204042,122.4,122.37,0.05833798]
[1766598309547,8.95204042,122.4,122.33,8.67]
[1766598310546,16.30934042,122.4,122.35,0.05723712]
[1766598313554,8.9,122.39,122.35,0.05723712]
[1766598318245,8.9,122.38,122.32,16.0315]
[1766598318450,8.9,122.38,122.32,8.67]
[1766598319258,0.05405962,122.36,122.34,0.04132822]
[1766598320043,0.05405962,122.36,122.35,7.3603]
[1766598320358,8.9,122.43,122.36,8.67]
[1766598320947,1.3965863,122.44,122.36,8.67]
[1766598320948,8.9,122.42,122.36,16.0292]
[1766598321148,0.05384488,122.4,122.38,0.05491325]
[1766598322553,8.95384488,122.4,122.34,16.0303]
[1766598322762,10.2965863,122.4,122.32,18.81992405]
[1766598323548,8.9,122.39,122.33,7.3614]
[1766598323750,0.06002674,122.37,122.35,0.04047458]
[1766598330467,0.06002674,122.37,122.32,7.3618]
[1766598330973,0.06002674,122.37,122.31,18.81992405]
[1766598330974,8.9,122.36,122.31,16.0327]
[1766598331172,8.9,122.36,122.29,8.67]
[1766598331472,0.05820061,122.34,122.29,8.67]
[1766598332575,0.05820061,122.34,122.3,7.3633]
[1766598333070,0.05820061,122.34,122.3,15.7733]
[1766598333270,8.48820061,122.34,122.28,8.41]
[1766598333484,0.05820061,122.34,122.28,8.41]
[1766598334067,0.05820061,122.34,122.29,8.41]
[1766598334262,8.48820061,122.34,122.29,8.41]
[1766598337385,8.48820061,122.34,122.28,7.3642]
[1766598337682,8.48820061,122.34,122.28,16.1442]
[1766598338889,9.09,122.33,122.28,16.1442]
[1766598339177,0.05820061,122.34,122.29,16.1438]
[1766598339371,0.05303038,122.33,122.29,16.1438]
[1766598352993,0.05303038,122.33,122.29,8.78]
[1766598357503,0.05303038,122.33,122.29,16.1438]
[1766598357888,0.05303038,122.33,122.29,8.78]
[1766598359295,0.05303038,122.33,122.29,16.1437]
[1766598359695,0.05303038,122.33,122.29,8.78]
[1766598360793,0.00303038,122.33,122.29,8.78]
[1766598360996,9.09,122.39,122.29,10.96447375]
[1766598361199,9.09,122.39,122.32,8.78]
[1766598361785,9.09,122.39,122.33,8.23]
[1766598361996,0.05881908,122.37,122.35,0.05229268]
[1766598362695,8.03,122.41,122.35,8.28229268]
[1766598362895,8.03,122.41,122.35,8.23]
[1766598363998,8.0927187,122.39,122.33,8.23]
[1766598364897,8.0927187,122.39,122.35,0.05615146]
[1766598365601,15.4508187,122.39,122.35,0.05615146]
[1766598366797,15.4508187,122.39,122.32,7.362]
[1766598366798,8.03,122.37,122.31,8.23]
[1766598367004,8.03,122.43,122.33,8.23]
[1766598367698,0.05353947,122.39,122.33,8.23]
[1766598368599,0.05353947,122.39,122.35,8.23]
[1766598369098,2.06496048,122.45,122.35,8.23]
[1766598369099,8.03,122.44,122.35,8.23]
[1766598369304,8.03,122.44,122.38,8.23]
[1766598370108,0.05441915,122.42,122.4,0.05353947]
[1766598375304,8.08441915,122.42,122.36,8.23]
[1766598375505,8.03,122.42,122.36,8.23]
[1766598375912,8.03,122.42,122.37,8.23]
[1766598376110,7.3557,122.43,122.37,8.23]
[1766598376313,0.05679824,122.41,122.37,8.23]
[1766598378906,8.03,122.44,122.38,8.28679824]
[1766598379502,2.06496048,122.45,122.39,7.3578]
[1766598379710,7.3542,122.46,122.4,8.23]
[1766598379904,0.05957426,122.44,122.42,0.05315444]
[1766598382220,8.08957426,122.44,122.42,0.00315444]
[1766598385221,8.08957426,122.44,122.38,8.23]
[1766598385222,15.44477426,122.44,122.38,8.23]
[1766598386121,8.03,122.43,122.38,8.23]
[1766598386335,8.03,122.43,122.36,8.23]
[1766598386637,0.06035703,122.41,122.36,8.23]
[1766598386943,0.06035703,122.41,122.37,8.23]
[1766598387137,0.00035703,122.41,122.37,8.23]
[1766598388244,0.00035703,122.41,122.38,0.05252768]
[1766598388533,0.00035703,122.41,122.38,7.41072768]
[1766598390529,0.00035703,122.41,122.38,15.64072768]
[1766598391832,0.00035703,122.41,122.38,8.28252768]
[1766598392743,8.04035703,122.41,122.38,0.05252768]
[1766598393035,0.00035703,122.41,122.38,0.05252768]
[1766598394035,0.00035703,122.41,122.38,7.88252768]
[1766598394544,0.00035703,122.41,122.38,15.24082768]
[1766598395240,15.3931,122.47,122.4,7.83]
[1766598396340,0.06201491,122.45,122.42,0.05456629]
[1766598409752,0.06201491,122.45,122.42,8.16456629]
[1766598413858,0.00201491,122.45,122.42,15.52056629]
[1766598414159,0.00201491,122.45,122.43,8.11]
[1766598415553,7.79,122.49,122.44,8.11]
[1766598416658,0.0580158,122.48,122.45,0.05486649]
[1766598418456,9.18535828,122.47,122.39,10.14992405]
[1766598418661,1.39535828,122.45,122.39,8.11]
[1766598419057,7.79,122.46,122.4,8.11]
[1766598419558,0.06155354,122.44,122.42,0.06265846]
[1766598420560,0.00155354,122.44,122.42,8.17265846]
[1766598430170,7.96,122.47,122.42,8.17265846]
[1766598431263,0.05820896,122.46,122.42,8.17265846]
[1766598434774,1.39535828,122.48,122.43,7.62]
[1766598434987,7.96,122.54,122.43,7.62]
[1766598435275,9.35535828,122.54,122.45,7.62]
[1766598435477,9.35535828,122.52,122.43,7.62]
[1766598435772,0.05908259,122.49,122.46,7.68003897]
[1766598436870,0.05908259,122.49,122.46,0.06003897]
[1766598437677,15.37118259,122.49,122.43,7.62]
[1766598437878,9.35535828,122.48,122.4,7.62]
[1766598438477,7.96,122.5,122.43,7.62]
[1766598438680,9.35535828,122.5,122.43,7.62]
[1766598438977,0.0571356,122.48,122.45,0.05440319]
[1766598439179,0.0571356,122.48,122.45,7.67440319]
[1766598439365,1.39535828,122.5,122.45,7.67440319]
[1766598440271,0.0551525,122.49,122.45,7.67440319]
[1766598452175,7.3507,122.51,122.45,7.67440319]
[1766598452475,7.5,122.55,122.45,9.06976147]
[1766598452782,14.8489,122.55,122.48,14.9023]
[1766598452982,14.8489,122.55,122.49,7.55]
[1766598453178,0.05742041,122.53,122.51,0.05415395]
[1766598461276,7.61,122.57,122.51,7.68415395]
[1766598461485,9.00535828,122.57,122.51,7.63]
[1766598462385,7.3489,122.54,122.48,7.63]
[1766598462688,14.9589,122.54,122.48,7.63]
[1766598463575,0.05592485,122.52,122.5,0.05956526]
[1766598465079,7.61,122.56,122.5,7.68956526]
[1766598465290,7.61,122.56,122.5,7.63]
[1766598465683,14.9577,122.56,122.5,7.63]
[1766598466090,0.05542132,122.54,122.52,0.06028576]
[1766598468292,7.66542132,122.54,122.52,0.00028576]
[1766598468996,7.40462132,122.54,122.52,0.00028576]
[1766598470791,9.78770441,122.57,122.52,0.00028576]
[1766598470991,7.61,122.56,122.52,0.00028576]
[1766598471598,7.3484,122.55,122.52,0.00028576]
[1766598471796,7.40037265,122.55,122.52,0.00028576]
[1766598474094,7.61,122.58,122.52,7.63028576]
[1766598474295,7.61,122.58,122.52,7.63]
[1766598475300,0.0555873,122.56,122.54,0.05607953]
[1766598477802,0.0555873,122.56,122.51,14.9806]
[1766598478699,0.0555873,122.56,122.52,7.63]
[1766598478901,0.0555873,122.56,122.53,0.06205816]
[1766598487103,7.88,122.62,122.54,8.12]
[1766598487699,7.3447,122.61,122.55,8.12]
[1766598488111,0.05159757,122.59,122.57,0.0528912]
[1766598488401,7.88,122.65,122.57,8.1728912]
[1766598488599,7.88,122.65,122.57,8.12]
[1766598489306,0.06024843,122.62,122.6,0.06107788]
[1766598490206,7.88,122.65,122.6,0.06107788]
[1766598491295,0.05997169,122.64,122.6,0.06107788]
[1766598491699,7.40297169,122.64,122.6,0.06107788]
[1766598493212,7.93997169,122.64,122.6,0.06107788]
[1766598493410,7.88,122.62,122.6,0.00107788]
[1766598493705,15.2241,122.62,122.56,8.12]
[1766598493912,7.88,122.62,122.54,8.12]
[1766598494104,7.88,122.61,122.54,8.12]
[1766598494911,15.2835728,122.59,122.56,0.05502275]
[1766598495103,15.28487587,122.59,122.56,0.0552478]
[1766598497116,15.2266,122.58,122.53,8.12]
[1766598498017,15.2266,122.58,122.54,0.0533512]
[1766598501510,7.88,122.58,122.54,0.0533512]
[1766598501715,0.05897587,122.59,122.54,8.1733512]
[1766598502115,7.93897587,122.59,122.54,8.1733512]
[1766598502417,7.93897587,122.59,122.54,0.0533512]
[1766598503720,15.2268,122.58,122.54,0.0533512]
[1766598504318,15.2271,122.57,122.54,0.0033512]
[1766598504711,7.88,122.56,122.51,8.12]
[1766598505206,15.2277,122.56,122.51,8.12]
[1766598505411,7.88,122.56,122.51,8.12]
[1766598505807,0.06133563,122.55,122.52,0.05297089]
[1766598507921,7.94133563,122.55,122.52,0.00297089]
[1766598514014,15.28973563,122.55,122.52,0.00297089]
[1766598514326,8.18,122.54,122.47,15.5131]
[1766598514527,8.18,122.54,122.48,8.16]
[1766598514719,32.10832465,122.6,122.48,8.16]
[1766598514720,15.5282,122.56,122.48,8.16]
[1766598515115,0.05223876,122.53,122.51,0.05313058]
[1766598516629,15.5282,122.56,122.51,0.05313058]
[1766598517634,0.05633175,122.55,122.51,0.05313058]
[1766598519639,15.2669,122.58,122.51,8.35313058]
[1766598519832,15.2669,122.58,122.51,8.3]
[1766598520033,7.92,122.57,122.51,8.3]
[1766598520638,0.0519566,122.55,122.53,0.06005667]
[1766598522835,0.0019566,122.55,122.53,0.06005667]
[1766598523039,7.92,122.59,122.53,8.36005667]
[1766598523941,0.05723492,122.57,122.53,8.36005667]
[1766598524538,0.05723492,122.57,122.53,15.70955667]
[1766598524936,0.05723492,122.57,122.53,8.36005667]
[1766598525237,7.97723492,122.57,122.53,0.06005667]
[1766598526535,15.32443492,122.57,122.53,0.06005667]
[1766598529353,7.97723492,122.57,122.53,0.06005667]
[1766598529843,7.92,122.56,122.53,0.06005667]
[1766598537051,7.92,122.55,122.53,5.667e-05]
[1766598540659,7.92,122.61,122.53,9.69327983]
[1766598540956,7.92,122.6,122.53,9.69322316]
[1766598541748,0.05188407,122.58,122.55,0.06220285]
[1766598543148,7.92,122.6,122.55,7.41050285]
[1766598543354,7.92,122.6,122.55,15.14050285]
[1766598544159,0.05895832,122.59,122.55,15.14050285]
[1766598544658,77.53322316,122.67,122.56,7.73]
[1766598545560,0.05530788,122.63,122.6,0.06061579]
[1766598560466,0.05530788,122.63,122.6,7.40591579]
[1766598562574,8.21530788,122.63,122.6,0.00061579]
[1766598566583,0.05530788,122.63,122.6,0.00061579]
[1766598570186,0.05530788,122.63,122.6,7.34591579]
[1766598571289,8.21530788,122.63,122.6,0.00061579]
[1766598580485,8.3,122.61,122.57,7.3465]
[1766598581396,8.3,122.63,122.57,15.2065]
[1766598581595,8.3,122.63,122.58,0.055057]
[1766598581798,8.3,122.65,122.58,7.915057]
[1766598581994,8.3,122.65,122.58,7.86]
[1766598582698,0.05996091,122.63,122.6,0.05751357]
[1766598583587,0.05996091,122.63,122.6,7.40271357]
[1766598585092,8.3,122.65,122.6,7.40271357]
[1766598586105,0.05838518,122.64,122.6,7.40271357]
[1766598586609,0.05838518,122.64,122.61,7.3447]
[1766598586804,8.3,122.67,122.6,7.91751357]
[1766598587008,8.3,122.67,122.6,7.86]
[1766598587798,0.05546085,122.65,122.62,0.05535677]
[1766598588814,0.05546085,122.65,122.63,7.3434]
[1766598596404,0.05546085,122.65,122.62,7.39945677]
[1766598596914,0.05546085,122.65,122.62,0.05535677]
[1766598597114,8.35546085,122.65,122.62,0.05535677]
[1766598598814,8.35546085,122.65,122.58,15.2064]
[1766598599613,8.3,122.64,122.58,15.2064]
[1766598599802,0.05288736,122.62,122.6,0.06259058]
[1766598600514,0.00288736,122.62,122.6,7.92259058]
[1766598600813,0.00288736,122.62,122.6,0.06259058]
[1766598603909,0.00288736,122.62,122.6,7.91259058]
[1766598605220,0.00288736,122.62,122.6,15.25779058]
[1766598605520,0.00288736,122.62,122.61,7.85]
[1766598606120,0.00288736,122.62,122.6,0.06259058]
[1766598606720,0.00288736,122.62,122.6,7.91259058]
[1766598607522,0.00288736,122.62,122.6,15.25769058]
[1766598608719,0.00288736,122.62,122.6,7.91259058]
[1766598609024,7.52288736,122.62,122.54,17.99992405]
[1766598609216,7.52,122.62,122.55,7.85]
[1766598609420,14.8634,122.64,122.57,7.85]
[1766598609620,7.52,122.63,122.57,7.85]
[1766598610028,0.06150403,122.61,122.59,0.05803992]
[1766598614422,7.58150403,122.61,122.55,7.85]
[1766598615431,7.58150403,122.61,122.57,0.05315462]
[1766598632053,7.58150403,122.61,122.57,7.40015462]
[1766598633554,0.06150403,122.61,122.59,7.3459]
[1766598633744,7.3417,122.67,122.58,7.29]
[1766598634561,7.3417,122.67,122.6,7.3453]
[1766598634765,0.05693718,122.64,122.61,0.00209557]
[1766598635063,2.17313128,122.69,122.58,7.29]
[1766598635746,7.57,122.68,122.58,7.29]
[1766598635953,7.57,122.64,122.62,0.00198739]
[1766598639159,7.57,122.64,122.58,7.29]
[1766598640059,0.05564309,122.62,122.6,0.06222104]
[1766598641855,7.65564309,122.62,122.6,0.00222104]
[1766598642054,7.65564309,122.62,122.54,77.208216]
[1766598642055,7.65564309,122.62,122.54,69.55]
[1766598642261,7.6,122.62,122.52,7.55]
[1766598642561,7.6,122.59,122.51,7.55]
[1766598643146,0.05662088,122.56,122.54,0.0536778]
[1766598649058,7.6,122.6,122.54,7.6036778]
[1766598649253,7.6,122.6,122.54,7.55]
[1766598650057,0.05807862,122.58,122.56,0.06174125]
[1766598651157,0.05807862,122.58,122.56,0.00174125]
[1766598651158,7.65807862,122.58,122.56,0.00174125]
[1766598653762,7.65807862,122.58,122.52,7.55]
[1766598653959,7.65807862,122.58,122.52,69.55]
[1766598654665,7.65807862,122.58,122.54,0.05261784]
[1766598657057,7.65807862,122.58,122.49,52.25881067]
[1766598657058,7.6,122.56,122.49,7.3516]
[1766598657259,7.6,122.54,122.47,7.55]
[1766598657851,7.6,122.52,122.45,7.55]
[1766598658264,0.05963079,122.5,122.47,0.05312499]
[1766598664974,7.50963079,122.5,122.47,0.05312499]
[1766598669170,7.50963079,122.5,122.44,62.0]
[1766598669369,7.50963079,122.5,122.43,7.92]
[1766598670375,7.45,122.48,122.45,0.05862117]
[1766598670569,7.50503509,122.48,122.45,0.05862117]
[1766598671479,7.50503509,122.48,122.42,15.2756]
[1766598671676,7.45,122.47,122.4,7.92]
[1766598671979,7.45,122.47,122.38,7.92]
[1766598672371,7.45,122.47,122.38,69.92]
[1766598672571,0.05868114,122.44,122.41,0.05408047]
[1766598673273,7.50868114,122.44,122.38,62.0]
[1766598673468,7.45,122.43,122.34,16.67302115]
[1766598673874,7.45,122.43,122.34,7.92]
[1766598674176,7.45,122.41,122.34,7.92]
[1766598674380,7.51077559,122.4,122.34,7.92]
[1766598674582,7.51077559,122.4,122.36,0.06251468]
[1766598675189,14.86817559,122.4,122.36,0.06251468]
[1766598675374,7.45,122.39,122.32,7.92]
[1766598675681,7.45,122.39,122.32,15.282]
[1766598675884,7.45,122.41,122.32,9.31252115]
[1766598676273,7.45,122.41,122.34,7.3606]
[1766598676477,0.05349339,122.38,122.35,0.06053518]
[1766598679188,7.50349339,122.38,122.35,0.06053518]
[1766598679385,7.50349339,122.38,122.3,9.31252115]
[1766598679589,7.45,122.38,122.3,9.31252115]
[1766598679985,7.45,122.36,122.3,7.92]
[1766598680391,0.06025723,122.34,122.32,0.03343374]
[1766598681892,0.06025723,122.34,122.32,0.00343374]
[1766598683182,7.51025723,122.34,122.28,9.31252115]
[1766598685503,7.51025723,122.34,122.28,71.31252115]
[1766598687388,7.51025723,122.34,122.28,78.67682115]
[1766598689484,0.06025723,122.34,122.3,9.31252115]
[1766598689693,7.45,122.38,122.3,9.31252115]
[1766598690611,0.05624495,122.35,122.33,0.05537331]
[1766598692708,0.05624495,122.35,122.31,7.3627]
[1766598693109,0.05624495,122.35,122.32,7.3621]
[1766598694915,15.2384,122.39,122.32,15.2921]
[1766598695311,7.88,122.45,122.34,1.39252115]
[1766598695513,7.88,122.45,122.37,7.93]
[1766598695722,2.09102307,122.49,122.38,9.32252115]
[1766598695723,7.88,122.48,122.38,9.32252115]
[1766598696017,7.94285441,122.44,122.42,0.00112887]
[1766598696204,7.88,122.44,122.38,69.93]
[1766598696813,7.88,122.44,122.38,7.93]
[1766598697216,0.05727113,122.42,122.38,7.93]
[1766598697808,0.05727113,122.42,122.38,9.32252115]
[1766598698923,0.05727113,122.42,122.38,7.93]
[1766598699415,0.05727113,122.42,122.38,9.32252115]
[1766598700209,15.2334,122.47,122.4,7.93]
[1766598700415,7.88,122.47,122.4,9.32252115]
[1766598700613,7.88,122.47,122.4,7.93]
[1766598701413,0.05604214,122.45,122.42,0.05216802]
[1766598704113,14.6024,122.49,122.42,7.50216802]
[1766598705107,0.05157094,122.47,122.42,7.50216802]
[1766598708627,0.05157094,122.47,122.42,8.89468917]
[1766598709631,0.05157094,122.47,122.43,14.8053]
[1766598711131,0.05157094,122.47,122.43,7.45]
[1766598715228,0.05157094,122.47,122.42,7.40796802]
[1766598715229,0.05157094,122.47,122.42,0.05216802]
[1766598715828,7.30157094,122.47,122.42,0.05216802]
[1766598716132,0.05157094,122.47,122.42,7.50216802]
[1766598716931,7.30157094,122.47,122.42,0.05216802]
[1766598717233,7.30157094,122.47,122.42,7.50216802]
[1766598719330,0.05157094,122.47,122.43,7.45]
[1766598719529,0.00157094,122.47,122.43,7.45]
[1766598720125,0.00157094,122.47,122.44,7.3549]
[1766598720530,0.00157094,122.47,122.43,7.45]
[1766598721126,0.00157094,122.47,122.44,7.3549]
[1766598721823,0.00157094,122.47,122.44,14.7849]
[1766598722325,0.00157094,122.47,122.45,7.43]
[1766598722521,0.00157094,122.47,122.45,7.48224555]
[1766598722736,0.00157094,122.47,122.45,0.05224555]
[1766598725435,7.30157094,122.47,122.4,7.43]
[1766598725624,7.3,122.47,122.4,7.43]
[1766598726329,0.05170209,122.45,122.42,0.05975229]
[1766598726529,7.35170209,122.45,122.38,7.43]
[1766598726735,7.3,122.45,122.38,7.43]
[1766598727636,0.05594931,122.43,122.4,0.05131544]
[1766598728337,14.71144931,122.43,122.36,103.91]
[1766598728524,7.35594931,122.43,122.31,7.43]
[1766598728728,7.3,122.43,122.31,7.43]
[1766598729328,14.656,122.43,122.31,7.43]
[1766598729530,0.05289497,122.38,122.34,7.3608]
[1766598729733,0.05289497,122.38,122.34,14.7908]
[1766598730836,0.05289497,122.38,122.34,7.43]
[1766598732333,0.05289497,122.38,122.34,14.7908]
[1766598733848,0.00289497,122.38,122.35,14.7902]
[1766598734939,0.00289497,122.38,122.35,14.8402]
[1766598736037,0.00289497,122.38,122.36,14.7896]
[1766598736238,7.3,122.45,122.37,7.43]
[1766598737129,0.05439031,122.42,122.4,0.00289497]
[1766598739135,0.00439031,122.42,122.4,0.00289497]
[1766598750543,7.15439031,122.42,122.4,0.00289497]
[1766598751544,7.3567,122.41,122.4,0.00289497]
[1766598756450,7.15439031,122.42,122.4,0.00289497]
[1766598757049,14.51079031,122.42,122.4,0.00289497]
[1766598757250,7.59,122.41,122.4,0.00289497]
[1766598757754,7.59,122.4,122.34,14.5909]
[1766598758544,0.05963273,122.38,122.36,0.05]
[1766598760656,0.05963273,122.38,122.36,7.4097]
[1766598765360,0.05963273,122.38,122.36,0.05]
[1766598767563,14.6262,122.42,122.36,0.05]
[1766598768063,7.27,122.41,122.36,0.05]
[1766598768565,0.0627423,122.4,122.36,0.05]
[1766598775272,0.0627423,122.4,122.36,7.49]
[1766598775477,0.0027423,122.4,122.36,7.49]
[1766598776675,0.0027423,122.4,122.36,14.8491]
[1766598778378,0.0027423,122.4,122.37,7.44]
[1766598780378,0.0027423,122.4,122.36,0.05]
[1766598780675,0.0027423,122.4,122.36,7.49]
[1766598781681,0.0027423,122.4,122.37,14.569]
[1766598783186,0.0027423,122.4,122.38,7.21]
[1766598783375,0.0027423,122.4,122.38,14.5684]
[1766598783579,14.6549,122.45,122.39,7.21]
[1766598784586,0.06162401,122.43,122.41,0.05507592]
[1766598785989,8.75842935,122.43,122.36,14.5692]
[1766598786892,8.75842935,122.43,122.38,0.05202104]
[1766598787078,14.6562,122.42,122.38,0.05202104]
[1766598787382,7.3,122.41,122.38,0.05202104]
[1766598787787,14.6567,122.41,122.38,0.05202104]
[1766598790389,7.3,122.4,122.34,15.96710534]
[1766598791483,0.05525893,122.38,122.36,0.05734582]
[1766598793882,0.05525893,122.38,122.34,7.21]